[Event "53rd Mar Del Plata Open 2024"]
[Site "Mar Del Plata"]
[Date "2024.03.30"]
[Round "9.1"]
[White "Spata, German"]
[Black "Christiansen, Johan-Sebastian"]
[Result "1/2-1/2"]
[ECO "E61"]
[WhiteElo "2421"]
[BlackElo "2633"]
[Annotator "TA"]
[PlyCount "23"]
[EventDate "2024.03.23"]
[EventType "swiss"]
[EventCountry "ARG"]
[SourceTitle "playchess.com"]
[Source "ChessBase"]
[SourceQuality "1"]
[TimeControl "5400+30"]

{[%evp 18,23,37,48,34,16,44,52]} 1. d4 {[%emt 0:00:00]} Nf6 {[%emt 0:06:06]} 2. c4 {[%emt 0:00:31]} g6 {[%emt 0:00:36]} 3. Nc3 {[%emt 0:06:24]} Bg7 {[%emt 0:00:01]} 4. Nf3 {[%emt 0:01:41]} O-O {[%emt 0:00:28]} 5. Bg5 {[%emt 0:01:02]} h6 {[%emt 0:00:20]} 6. Bh4 {[%emt 0:00:07]} d6 {[%emt 0:01:19]} 7. e3 {[%emt 0:00:15]} Nbd7 {[%emt 0:03:04]} 8. Be2 {[%emt 0:00:34]} c6 {[%emt 0:04:47]} 9. Qc2 {[%emt 0:01:08]} e5 {[%emt 0:03:59]} 10. Rd1 {[%emt 0:03:07][%cal Of3e5]} Qe7 {[%emt 0:01:45]} 11. O-O {[%emt 0:03:03]} Re8 {[%emt 0:05:48]} 12. a3 {[%emt 0:02:57] Weighted Error Value: White=0.09 (flawless) /Black=0.14 (very precise) .  Inaccurate:     	---       	Black=1} 1/2-1/2

[Event "53rd Mar Del Plata Open 2024"]
[Site "Mar Del Plata"]
[Date "2024.03.30"]
[Round "9.2"]
[White "Tristan, Leonardo"]
[Black "Acosta, Pablo Ismael"]
[Result "1-0"]
[ECO "D32"]
[WhiteElo "2521"]
[BlackElo "2463"]
[Annotator "TA"]
[PlyCount "55"]
[EventDate "2024.03.23"]
[EventType "swiss"]
[EventCountry "ARG"]
[SourceTitle "playchess.com"]
[Source "ChessBase"]
[SourceQuality "1"]
[TimeControl "5400+30"]

{[%evp 13,55,29,25,31,99,29,46,46,97,95,96,98,99,95,90,87,93,90,102,102,89,95,108,95,98,94,114,114,118,112,176,179,202,197,476,462,505,499,768,641,622,631,29993,1163]} 1. d4 {[%emt 0:01:53]} d5 {[%emt 0:00:15]} 2. Nf3 {[%emt 0:00:26]} c5 {[%emt 0:00:15]} 3. c4 {[%emt 0:01:29]} e6 {[%emt 0:05:03]} 4. cxd5 {[%emt 0:00:57]} exd5 {[%emt 0:00:06]} 5. Nc3 {[%emt 0:00:11]} Nf6 {[%emt 0:00:45]} 6. Bg5 {[%emt 0:01:27]} Be6 {[%emt 0:02:39]} 7. Bxf6 {[%emt 0:37:50]} Qxf6 {[%emt 0:04:13]} 8. e4 {[%emt 0:00:04][%cal Be2e4,Be4d5][%mdl 32]} cxd4 {[%emt 0:08:06]} ({Black should try} 8... dxe4 $14 9. Nxe4 Qf4 10. Bb5+ Nc6) 9. Qxd4 {[%emt 0:08:27]} (9. Nxd5 $2 {loses.} Bxd5 10. exd5 Bb4+ 11. Ke2 O-O $17) (9. Bb5+ $1 $16 Nd7 10. Bxd7+ (10. Nxd5 Bxd5 11. exd5 O-O-O $14) (10. Nxd4 Bc5 $11) (10. Qxd4 dxe4 11. Qxe4 O-O-O $11) 10... Kxd7 11. Qb3 (11. Nxd5 Bxd5 12. exd5 Re8+ 13. Kf1 Bc5 $11) (11. Nxd4 Bc5 $16)) 9... Qxd4 {[%emt 0:25:25]} 10. Nxd4 {[%emt 0:00:06] Threatens to win with Bb5+. A dynamic duo of knights. White is slightly better.} Bb4 {[%emt 0:04:53]} ({Better is} 10... dxe4 $14 11. O-O-O Bd7) 11. Nxe6 $16 {[%emt 0:02:19]} fxe6 {[%emt 0:03:52]} 12. exd5 {[%emt 0:00:05]} Ke7 {[%emt 0:12:25]} 13. O-O-O {[%emt 0:12:00]} Rc8 {[%emt 0:02:38]} 14. Bd3 {[%emt 0:07:52]} Bxc3 {[%emt 0:08:09]} 15. bxc3 {[%emt 0:00:25]} exd5 {[%emt 0:00:06]} 16. Bxh7 {[%emt 0:01:42]} Rxc3+ {[%emt 0:07:36] [#]} 17. Kb2 $1 {[%emt 0:01:44]} Rc5 {[%emt 0:00:04]} 18. Rhe1+ {[%emt 0:00:42]} Kf7 {[%emt 0:01:38]} 19. Bf5 {[%emt 0:00:18][%cal Bh7f5,Bf5e6,Be6d5][%mdl 32]} Rb5+ {[%emt 0:00:04]} 20. Ka1 {[%emt 0:00:30] White is much more active. The black rooks are passive.} Nc6 {[%emt 0:03:18]} 21. Be6+ {[%emt 0:02:16]} Kf6 {[%emt 0:00:25]} (21... Kf8 $16) 22. Bxd5 $18 {[%emt 0:00:06]} Nb4 {[%emt 0:01:30] [#]} 23. Bb3 {[%emt 0:01:19] Against Nc2+. a3 would now be deadly.} a5 $2 {[%emt 0:03:24]} (23... Rb6 {was worth a try.} 24. Rd7 Rh8) 24. Rd6+ {[%emt 0:06:15]} Kg5 {[%emt 0:00:31]} 25. a3 {[%emt 0:04:11]} Nc6 {[%emt 0:03:10] [#]} (25... Ra6 $142) 26. h4+ $1 {[%emt 0:01:30][%mdl 512]} Kf4 {[%emt 0:00:59]} 27. Bd5 {[%emt 0:02:26]} Ne5 {[%emt 0:01:49]} 28. g3+ {[%emt 0:01:37] Weighted Error Value: White=0.14 (very precise) /Black=0.66.  Mistake:       	White=1     	Black=5      OK:         	White=6     	Black=6      Best:        	White=3     	---        Strong:       	White=1     	---} (28. Be6 $142 Nc6 29. Rd3 (29. Re3 Rf5 $18) 29... Rf5 30. Rf3+ Kg4 31. Rxf5 (31. Bxf5+ Kh5 32. Rg3 Rf8 33. Rg5+ Kh6 34. Re6+ Rf6 35. g4 g6 36. Rxf6 Ne7) 31... g5 32. Rxg5+ Kxh4 33. Rg4+ Kh5 34. Rh1#) 1-0

[Event "53rd Mar Del Plata Open 2024"]
[Site "Mar Del Plata"]
[Date "2024.03.30"]
[Round "9.3"]
[White "Kiselev, Vitalii"]
[Black "Jaque Gutierrez, Matias"]
[Result "0-1"]
[ECO "C77"]
[WhiteElo "2519"]
[BlackElo "2173"]
[Annotator "TA"]
[PlyCount "74"]
[EventDate "2024.03.23"]
[EventType "swiss"]
[EventCountry "ARG"]
[SourceTitle "playchess.com"]
[Source "ChessBase"]
[SourceQuality "1"]
[TimeControl "5400+30"]

{[%evp 18,74,0,-12,0,-49,-46,-64,-46,-59,-47,-55,-56,-62,-27,-18,-18,-30,-24,-39,0,-7,0,-36,-12,-85,0,0,0,0,0,10,29,11,18,-20,-21,-453,-316,-298,-281,-276,-271,-379,-355,-389,-377,-428,-412,-394,-370,-479,-456,-29994,-29995,-29995,-29994,-29994,-29995]} 1. e4 {[%emt 0:01:59]} e5 {[%emt 0:00:18]} 2. Nf3 {[%emt 0:00:06]} Nc6 {[%emt 0:00:19]} 3. Bb5 {[%emt 0:01:09][%cal Bf1b5,Bb5a4,Ba4b3][%mdl 32]} a6 {[%emt 0:00:16]} 4. Ba4 {[%emt 0:00:06]} Nf6 {[%emt 0:00:15]} 5. Qe2 {[%emt 0:01:03]} b5 {[%emt 0:00:36]} 6. Bb3 {[%emt 0:02:12]} Bc5 {[%emt 0:00:24]} 7. a4 {[%emt 0:00:23]} Rb8 {[%emt 0:04:00]} 8. axb5 {[%emt 0:01:40]} axb5 {[%emt 0:00:21]} 9. Nc3 {[%emt 0:00:28]} O-O {[%emt 0:10:36]} 10. d3 {[%emt 0:10:38]} h6 {[%emt 0:07:49]} 11. Be3 {[%emt 0:16:34]} (11. Nd5 $11) 11... Nd4 $15 {[%emt 0:10:30]} 12. Bxd4 {[%emt 0:06:39]} exd4 {[%emt 0:00:15] Black is slightly better.} 13. Nd5 {[%emt 0:03:49]} Nxd5 {[%emt 0:02:35]} 14. Bxd5 {[%emt 0:00:15]} c6 {[%emt 0:03:55]} 15. Bb3 {[%emt 0:00:26]} d5 {[%emt 0:03:21]} 16. O-O {[%emt 0:01:13]} Re8 {[%emt 0:02:18]} 17. Qd2 {[%emt 0:06:17]} dxe4 {[%emt 0:07:09]} 18. dxe4 {[%emt 0:06:43]} Qf6 {[%emt 0:06:15]} 19. Qd3 {[%emt 0:04:34]} Bg4 {[%emt 0:04:18]} 20. Nd2 {[%emt 0:02:05]} Ra8 {[%emt 0:02:29]} 21. f3 {[%emt 0:04:28] [#]} (21. h3 $11 Rxa1 22. Rxa1) 21... Bd7 {[%emt 0:03:37]} ({Black should try} 21... Rxa1 $1 $17 22. Rxa1 Bd7) 22. Rxa8 $11 {[%emt 0:01:18]} Rxa8 {[%emt 0:00:02]} 23. f4 {[%emt 0:00:09]} Bb6 {[%emt 0:04:54] ...c5 is the strong threat.} 24. e5 {[%emt 0:03:20]} Qf5 {[%emt 0:02:10]} 25. Ne4 {[%emt 0:02:25]} Be6 {[%emt 0:01:17]} 26. h3 {[%emt 0:05:45] Strongly threatening g4.} (26. Bxe6 {simplifies} Qxe6 27. h3 Ra2 28. Rb1) 26... Bc4 $1 {[%emt 0:01:26]} ({But not} 26... Bxb3 $2 27. Nf6+ $18) 27. Qf3 {[%emt 0:09:33][%mdl 8192] Loses the game.} Bxf1 {[%emt 0:03:41]} 28. Kxf1 {[%emt 0:00:01]} Ra1+ {[%emt 0:05:36]} 29. Ke2 {[%emt 0:00:02] [#]} d3+ $1 {[%emt 0:04:56]} 30. cxd3 {[%emt 0:01:44]} (30. Qxd3 Qxf4) 30... Rb1 {[%emt 0:00:35]} 31. Nd6 {[%emt 0:02:05]} Rxb2+ {[%emt 0:00:05]} 32. Kd1 {[%emt 0:00:08]} Qd7 {[%emt 0:01:55]} ({Not} 32... Rb1+ $2 33. Kc2 Qd7 34. Kxb1 $18) 33. Bxf7+ {[%emt 0:05:23] [#]} Kf8 $1 {[%emt 0:01:15] ( -> ...Qa7)} 34. Kc1 {[%emt 0:00:04]} Rf2 {[%emt 0:01:36]} 35. Qe4 {[%emt 0:01:33]} (35. Qg4 $19 Be3+ 36. Kd1 Qxg4+ 37. hxg4 Bxf4 38. Bg6) 35... Qa7 {[%emt 0:01:02][%cal Ra7a1] Black mates.} 36. Ba2 {[%emt 0:00:01]} Rf1+ {[%emt 0:03:07]} 37. Kb2 {[%emt 0:00:07]} Bd4+ {[%emt 0:01:24] Weighted Error Value: White=0.62/Black=0.15 (very precise) .  Loses game:     	White=1     	---        Mistake:       	White=3     	Black=1      Inaccurate:     	White=3     	Black=3      OK:         	White=7     	Black=7      Best:        	White=4     	Black=5      Strong:       	---       	Black=2      Brilliant:      	---       	Black=1} 0-1

[Event "53rd Mar Del Plata Open 2024"]
[Site "Mar Del Plata"]
[Date "2024.03.30"]
[Round "9.4"]
[White "Marrujo Pardo, Mauricio Emmanuel"]
[Black "Leskovar, Mario"]
[Result "1/2-1/2"]
[ECO "B15"]
[WhiteElo "2337"]
[BlackElo "2164"]
[Annotator "RC"]
[PlyCount "151"]
[EventDate "2024.03.23"]
[EventType "swiss"]
[EventCountry "ARG"]
[SourceTitle "playchess.com"]
[Source "ChessBase"]
[SourceQuality "1"]
[TimeControl "5400+30"]

1. e4 {[%emt 0:00:03]} g6 {[%emt 0:00:27]} 2. d4 {[%emt 0:00:16]} c6 {[%emt 0:00:17]} 3. Nc3 {[%emt 0:01:16]} d5 {[%emt 0:00:23]} 4. e5 {[%emt 0:00:07]} f6 {[%emt 0:02:39]} 5. Bf4 {[%emt 0:19:28]} Bg7 {[%emt 0:05:35]} 6. Nf3 {[%emt 0:00:30]} Bg4 {[%emt 0:00:23]} 7. h3 {[%emt 0:18:58]} Bxf3 {[%emt 0:02:43]} 8. Qxf3 {[%emt 0:00:09]} fxe5 {[%emt 0:02:02]} 9. Bxe5 {[%emt 0:15:01]} Nf6 {[%emt 0:00:09]} 10. Qe3 {[%emt 0:00:18]} O-O {[%emt 0:00:34]} 11. O-O-O {[%emt 0:00:15]} Nbd7 {[%emt 0:00:16]} 12. Bd3 {[%emt 0:20:22]} Nxe5 {[%emt 0:00:50]} 13. dxe5 {[%emt 0:00:24]} Nd7 {[%emt 0:00:27]} 14. f4 {[%emt 0:00:05]} Qb6 {[%emt 0:00:34]} 15. Qxb6 {[%emt 0:02:11]} axb6 {[%emt 0:00:58]} 16. g3 {[%emt 0:00:44]} b5 {[%emt 0:01:51]} 17. Kb1 {[%emt 0:02:33]} e6 {[%emt 0:02:44]} 18. h4 {[%emt 0:06:40]} b4 {[%emt 0:03:02]} 19. Ne2 {[%emt 0:00:01]} Nc5 {[%emt 0:00:32]} 20. h5 {[%emt 0:00:11]} Nxd3 {[%emt 0:00:44]} 21. cxd3 {[%emt 0:00:03]} Rf7 {[%emt 0:00:41]} 22. Nd4 {[%emt 0:01:14]} Re8 {[%emt 0:00:52]} 23. hxg6 {[%emt 0:00:19]} hxg6 {[%emt 0:00:09]} 24. Nf3 {[%emt 0:00:07]} b6 {[%emt 0:03:04]} 25. Rh4 {[%emt 0:00:36]} Ra7 {[%emt 0:01:10]} 26. b3 {[%emt 0:05:07]} c5 {[%emt 0:01:16]} 27. Rg4 {[%emt 0:00:46]} Kf7 {[%emt 0:00:20]} 28. Ng5+ {[%emt 0:00:34]} Kg8 {[%emt 0:02:48]} 29. Rc1 {[%emt 0:03:54]} Bh6 {[%emt 0:04:44]} 30. Nf3 {[%emt 0:00:37]} Kf7 {[%emt 0:01:16]} 31. Rh1 {[%emt 0:01:15]} Bg7 {[%emt 0:02:04]} 32. Ng5+ {[%emt 0:01:10]} Kg8 {[%emt 0:00:08]} 33. Nf3 {[%emt 0:00:56]} Kf7 {[%emt 0:00:11]} 34. Rh7 {[%emt 0:00:38]} Rea8 {[%emt 0:02:27]} 35. Ng5+ {[%emt 0:00:11]} Kg8 {[%emt 0:00:09]} 36. Rh2 {[%emt 0:00:04]} Re8 {[%emt 0:00:43]} 37. Nf3 {[%emt 0:00:28]} Kf7 {[%emt 0:00:30]} 38. Nh4 {[%emt 0:00:59]} Rh8 {[%emt 0:01:00]} 39. Rxg6 {[%emt 0:00:31]} b5 {[%emt 0:01:05]} 40. Rg4 {[%emt 0:00:56]} c4 {[%emt 0:00:47]} 41. dxc4 {[%emt 0:00:28]} bxc4 {[%emt 0:00:09]} 42. bxc4 {[%emt 0:00:08]} dxc4 {[%emt 0:00:28]} 43. f5 {[%emt 0:00:52]} exf5 {[%emt 0:02:47]} 44. Rxc4 {[%emt 0:00:29]} Bxe5 {[%emt 0:00:16]} 45. Rf2 {[%emt 0:00:14]} Bxg3 {[%emt 0:02:28]} 46. Rxf5+ {[%emt 0:00:04]} Ke6 {[%emt 0:00:46]} 47. Re4+ {[%emt 0:01:12]} Kd6 {[%emt 0:00:14]} 48. Rd4+ {[%emt 0:00:06]} Ke6 {[%emt 0:00:31]} 49. Re4+ {[%emt 0:00:02]} Kd6 {[%emt 0:00:17]} 50. Nf3 {[%emt 0:01:19]} Re7 {[%emt 0:03:28]} 51. Rf6+ {[%emt 0:00:35]} Kd7 {[%emt 0:00:11]} 52. Rxb4 {[%emt 0:00:31]} Rh1+ {[%emt 0:00:48]} 53. Kc2 {[%emt 0:00:22]} Re2+ {[%emt 0:04:48]} 54. Kd3 {[%emt 0:00:02]} Rxa2 {[%emt 0:00:13]} 55. Rb7+ {[%emt 0:00:03]} Kc8 {[%emt 0:00:12]} 56. Rg7 {[%emt 0:00:25]} Rd1+ {[%emt 0:00:54]} 57. Ke3 {[%emt 0:00:24]} Bc7 {[%emt 0:00:29]} 58. Rf8+ {[%emt 0:01:41]} Rd8 {[%emt 0:01:13]} 59. Rxd8+ {[%emt 0:00:33]} Kxd8 {[%emt 0:00:21]} 60. Ng5 {[%emt 0:00:23]} Bb6+ {[%emt 0:00:31]} 61. Ke4 {[%emt 0:00:30]} Re2+ {[%emt 0:00:48]} 62. Kd5 {[%emt 0:00:09]} Ba5 {[%emt 0:04:39]} 63. Ne4 {[%emt 0:00:56]} Re1 {[%emt 0:01:35]} 64. Nc5 {[%emt 0:00:32]} Ke8 {[%emt 0:00:32]} 65. Nb7 {[%emt 0:00:25]} Bb4 {[%emt 0:00:59]} 66. Rg4 {[%emt 0:00:33]} Rb1 {[%emt 0:00:52]} 67. Kc6 {[%emt 0:00:26]} Ke7 {[%emt 0:00:32]} 68. Re4+ {[%emt 0:00:07]} Kf6 {[%emt 0:00:42]} 69. Rc4 {[%emt 0:00:58]} Be7 {[%emt 0:02:04]} 70. Na5 {[%emt 0:00:22]} Bd8 {[%emt 0:00:17]} 71. Nb7 {[%emt 0:00:39]} Rb6+ {[%emt 0:00:18]} 72. Kd7 {[%emt 0:00:03]} Rxb7+ {[%emt 0:00:15]} 73. Kxd8 {[%emt 0:00:03]} Ra7 {[%emt 0:00:15]} 74. Rc6+ {[%emt 0:00:07]} Kf7 {[%emt 0:00:22]} 75. Rc7+ {[%emt 0:00:23]} Rxc7 {[%emt 0:00:34]} 76. Kxc7 {[%emt 0:00:02]} 1/2-1/2

[Event "53rd Mar Del Plata Open 2024"]
[Site "Mar Del Plata"]
[Date "2024.03.30"]
[Round "9.5"]
[White "Tobares, Leandro"]
[Black "Villegas, Franco"]
[Result "0-1"]
[ECO "E05"]
[WhiteElo "2174"]
[BlackElo "2328"]
[Annotator "RC"]
[PlyCount "77"]
[EventDate "2024.03.23"]
[EventType "swiss"]
[EventCountry "ARG"]
[SourceTitle "playchess.com"]
[Source "ChessBase"]
[SourceQuality "1"]
[TimeControl "5400+30"]

1. Nf3 {[%emt 0:01:00]} Nf6 {[%emt 0:00:21]} 2. c4 {[%emt 0:00:34]} e6 {[%emt 0:00:18]} 3. g3 {[%emt 0:00:33]} d5 {[%emt 0:00:21]} 4. d4 {[%emt 0:00:36]} Be7 {[%emt 0:00:45]} 5. Bg2 {[%emt 0:00:40]} O-O {[%emt 0:00:14]} 6. O-O {[%emt 0:01:12]} dxc4 {[%emt 0:00:36]} 7. Qc2 {[%emt 0:00:44]} b5 {[%emt 0:00:42]} 8. a4 {[%emt 0:02:46]} b4 {[%emt 0:00:39]} 9. Qxc4 {[%emt 0:02:24]} Bb7 {[%emt 0:00:37]} 10. Bg5 {[%emt 0:06:00]} Nbd7 {[%emt 0:04:17]} 11. a5 {[%emt 0:08:27]} Rc8 {[%emt 0:03:37]} 12. Nbd2 {[%emt 0:04:41]} c5 {[%emt 0:05:25]} 13. Qd3 {[%emt 0:08:38]} cxd4 {[%emt 0:08:01]} 14. Qxd4 {[%emt 0:06:05]} Bc5 {[%emt 0:17:44]} 15. Bxf6 {[%emt 0:11:47]} Nxf6 {[%emt 0:00:15]} 16. Qxd8 {[%emt 0:00:58]} Rfxd8 {[%emt 0:00:05]} 17. Nb3 {[%emt 0:00:38]} Ne4 {[%emt 0:02:08]} 18. Ng5 {[%emt 0:07:43]} Bd5 {[%emt 0:00:06]} 19. Nxc5 {[%emt 0:16:06]} Nxc5 {[%emt 0:00:05]} 20. Rad1 {[%emt 0:01:38]} Bxg2 {[%emt 0:02:55]} 21. Kxg2 {[%emt 0:00:31]} f6 {[%emt 0:00:05]} 22. Nh3 {[%emt 0:01:13]} Nb3 {[%emt 0:01:09]} 23. Nf4 {[%emt 0:00:40]} Kf7 {[%emt 0:00:42]} 24. Nd3 {[%emt 0:03:17]} Rd4 {[%emt 0:00:14]} 25. e3 {[%emt 0:01:35]} Rdc4 {[%emt 0:00:18]} 26. Nf4 {[%emt 0:00:33]} Ke7 {[%emt 0:00:37]} 27. Rd3 {[%emt 0:02:04]} Nc1 {[%emt 0:02:13]} 28. Rdd1 {[%emt 0:02:11]} g5 {[%emt 0:00:13]} 29. Nd3 {[%emt 0:00:52]} Nb3 {[%emt 0:00:06]} 30. h4 {[%emt 0:02:13]} gxh4 {[%emt 0:02:07]} 31. Nf4 {[%emt 0:00:45]} e5 {[%emt 0:01:06]} 32. Nd5+ {[%emt 0:00:49]} Ke6 {[%emt 0:00:05]} 33. f4 {[%emt 0:01:11]} Rg8 {[%emt 0:05:00]} 34. fxe5 {[%emt 0:02:19]} Rc2+ {[%emt 0:01:32]} 35. Kh1 {[%emt 0:00:32]} hxg3 {[%emt 0:00:17]} 36. Rxf6+ {[%emt 0:01:06]} Kxe5 {[%emt 0:00:10]} 37. Rh6 {[%emt 0:01:28]} g2+ {[%emt 0:00:15]} 38. Kg1 {[%emt 0:00:09]} Rd2 {[%emt 0:00:04]} 39. Rh5+ {[%emt 0:03:22]} 0-1

[Event "53rd Mar Del Plata Open 2024"]
[Site "Mar Del Plata"]
[Date "2024.03.30"]
[Round "9.6"]
[White "Menna Barreto, Felipe Kubiaki"]
[Black "Castro Salgado, Pablo"]
[Result "1/2-1/2"]
[ECO "C28"]
[WhiteElo "2273"]
[BlackElo "2164"]
[Annotator "RC"]
[PlyCount "126"]
[EventDate "2024.03.23"]
[EventType "swiss"]
[EventCountry "ARG"]
[SourceTitle "playchess.com"]
[Source "ChessBase"]
[SourceQuality "1"]
[TimeControl "5400+30"]

1. e4 {[%emt 0:00:05]} e5 {[%emt 0:00:08]} 2. Bc4 {[%emt 0:00:10]} Nf6 {[%emt 0:00:10]} 3. d3 {[%emt 0:00:10]} Nc6 {[%emt 0:00:10]} 4. Nc3 {[%emt 0:00:30]} Bb4 {[%emt 0:05:55]} 5. Nge2 {[%emt 0:01:18]} O-O {[%emt 0:00:38]} 6. O-O {[%emt 0:07:01]} a6 {[%emt 0:08:03]} 7. a3 {[%emt 0:02:44]} Bc5 {[%emt 0:02:47]} 8. Bg5 {[%emt 0:04:34]} h6 {[%emt 0:05:27]} 9. Be3 {[%emt 0:00:35]} Bxe3 {[%emt 0:14:11]} 10. fxe3 {[%emt 0:00:22]} d6 {[%emt 0:05:31]} 11. Ng3 {[%emt 0:04:36]} g6 {[%emt 0:04:41]} 12. Qd2 {[%emt 0:18:19]} Kg7 {[%emt 0:05:05]} 13. Rf3 {[%emt 0:02:39]} Bg4 {[%emt 0:03:34]} 14. Rf2 {[%emt 0:01:09]} Be6 {[%emt 0:01:39]} 15. Raf1 {[%emt 0:04:52]} Nh7 {[%emt 0:06:31]} 16. Nd5 {[%emt 0:03:12]} Nb8 {[%emt 0:03:51]} 17. Qa5 {[%emt 0:08:26]} b6 {[%emt 0:10:54]} 18. Qc3 {[%emt 0:00:31]} Ra7 {[%emt 0:03:50]} 19. Nb4 {[%emt 0:09:57]} Qg5 {[%emt 0:05:41]} 20. Rf3 {[%emt 0:02:30]} h5 {[%emt 0:00:15]} 21. Nh1 {[%emt 0:03:22]} Qd8 {[%emt 0:01:50]} 22. Bxe6 {[%emt 0:00:59]} fxe6 {[%emt 0:00:16]} 23. Rxf8 {[%emt 0:00:28]} Nxf8 {[%emt 0:00:05]} 24. d4 {[%emt 0:00:29]} c5 {[%emt 0:01:40]} 25. Nd3 {[%emt 0:00:23]} cxd4 {[%emt 0:00:13]} 26. exd4 {[%emt 0:00:06]} Rc7 {[%emt 0:01:03]} 27. Qd2 {[%emt 0:02:40]} exd4 {[%emt 0:01:39]} 28. e5 {[%emt 0:00:17]} Nc6 {[%emt 0:02:19]} 29. exd6 {[%emt 0:00:25]} Qxd6 {[%emt 0:00:08]} 30. Ng3 {[%emt 0:00:22]} Nh7 {[%emt 0:02:41]} 31. Ne4 {[%emt 0:01:17]} Qd5 {[%emt 0:00:30]} 32. Nf4 {[%emt 0:05:42]} Qd7 {[%emt 0:00:31]} 33. Qd3 {[%emt 0:01:47]} e5 {[%emt 0:03:49]} 34. Nf6 {[%emt 0:04:03]} Nxf6 {[%emt 0:01:45]} 35. Qxg6+ {[%emt 0:00:06]} Kh8 {[%emt 0:00:00]} 36. Qxf6+ {[%emt 0:00:48]} Qg7 {[%emt 0:00:15]} 37. Ng6+ {[%emt 0:03:12]} Kh7 {[%emt 0:00:43]} 38. Nf8+ {[%emt 0:00:35]} Kg8 {[%emt 0:00:23]} 39. Qe6+ {[%emt 0:00:43]} Kh8 {[%emt 0:00:16]} 40. Qf5 {[%emt 0:01:42]} Nd8 {[%emt 0:00:49]} 41. Ng6+ {[%emt 0:00:33]} Kg8 {[%emt 0:00:10]} 42. Nxe5 {[%emt 0:00:55]} Rc5 {[%emt 0:00:40]} 43. Re1 {[%emt 0:01:02]} Nf7 {[%emt 0:00:27]} 44. Qxf7+ {[%emt 0:00:54]} Qxf7 {[%emt 0:00:01]} 45. Nxf7 {[%emt 0:00:08]} Kxf7 {[%emt 0:00:05]} 46. Re2 {[%emt 0:00:15]} a5 {[%emt 0:01:12]} 47. a4 {[%emt 0:00:44]} b5 {[%emt 0:00:13]} 48. axb5 {[%emt 0:00:31]} Rxb5 {[%emt 0:00:02]} 49. b3 {[%emt 0:00:19]} d3 {[%emt 0:01:09]} 50. cxd3 {[%emt 0:00:02]} Rxb3 {[%emt 0:00:06]} 51. Re5 {[%emt 0:00:13]} Kg6 {[%emt 0:00:57]} 52. Rxa5 {[%emt 0:00:43]} Rxd3 {[%emt 0:00:04]} 53. Kf2 {[%emt 0:00:36]} Rb3 {[%emt 0:00:16]} 54. Re5 {[%emt 0:00:24]} Ra3 {[%emt 0:00:14]} 55. Re3 {[%emt 0:00:07]} Ra4 {[%emt 0:00:20]} 56. Kf3 {[%emt 0:00:07]} Kf5 {[%emt 0:00:08]} 57. Rb3 {[%emt 0:00:12]} Ra5 {[%emt 0:00:21]} 58. Kg3 {[%emt 0:00:18]} Kg5 {[%emt 0:00:43]} 59. Kh3 {[%emt 0:00:23]} h4 {[%emt 0:00:15]} 60. Rb4 {[%emt 0:01:13]} Ra3+ {[%emt 0:00:05]} 61. g3 {[%emt 0:00:08]} hxg3 {[%emt 0:00:02]} 62. Rb5+ {[%emt 0:00:22]} Kf4 {[%emt 0:00:32]} 63. Rb4+ {[%emt 0:00:16]} Kg5 {[%emt 0:04:02]} 1/2-1/2

[Event "53rd Mar Del Plata Open 2024"]
[Site "Mar Del Plata"]
[Date "2024.03.30"]
[Round "9.7"]
[White "Carrizo, Luciano Ariel"]
[Black "Schnaider, Ilan"]
[Result "0-1"]
[ECO "C79"]
[WhiteElo "2176"]
[BlackElo "2314"]
[Annotator "RC"]
[PlyCount "66"]
[EventDate "2024.03.23"]
[EventType "swiss"]
[EventCountry "ARG"]
[SourceTitle "playchess.com"]
[Source "ChessBase"]
[SourceQuality "1"]
[TimeControl "5400+30"]

1. e4 {[%emt 0:00:17]} e5 {[%emt 0:03:06]} 2. Nf3 {[%emt 0:00:17]} Nc6 {[%emt 0:00:05]} 3. Bb5 {[%emt 0:00:07]} a6 {[%emt 0:00:14]} 4. Ba4 {[%emt 0:00:05]} Nf6 {[%emt 0:00:39]} 5. O-O {[%emt 0:00:26]} d6 {[%emt 0:00:10]} 6. Re1 {[%emt 0:00:41]} Bd7 {[%emt 0:00:10]} 7. c4 {[%emt 0:01:19]} Bg4 {[%emt 0:00:39]} 8. Nc3 {[%emt 0:05:57]} Nd7 {[%emt 0:02:46]} 9. Bxc6 {[%emt 0:00:22]} bxc6 {[%emt 0:00:04]} 10. d3 {[%emt 0:03:22]} Be7 {[%emt 0:05:24]} 11. Be3 {[%emt 0:03:23]} O-O {[%emt 0:05:34]} 12. h3 {[%emt 0:03:56]} Be6 {[%emt 0:15:31]} 13. Qa4 {[%emt 0:12:54]} c5 {[%emt 0:02:44]} 14. Nd5 {[%emt 0:02:54]} Nb6 {[%emt 0:10:05]} 15. Qa5 {[%emt 0:07:50]} f5 {[%emt 0:01:45]} 16. b4 {[%emt 0:33:24]} fxe4 {[%emt 0:02:09]} 17. bxc5 {[%emt 0:01:16]} Nxd5 {[%emt 0:02:51]} 18. cxd5 {[%emt 0:00:26]} exf3 {[%emt 0:00:57]} 19. dxe6 {[%emt 0:00:24]} fxg2 {[%emt 0:00:23]} 20. cxd6 {[%emt 0:01:44]} Qxd6 {[%emt 0:00:52]} 21. Rac1 {[%emt 0:04:12]} Qxe6 {[%emt 0:00:59]} 22. Bd4 {[%emt 0:00:18]} c5 {[%emt 0:03:26]} 23. Re3 {[%emt 0:14:24]} cxd4 {[%emt 0:00:18]} 24. Rxe5 {[%emt 0:00:06]} Qxh3 {[%emt 0:02:28]} 25. Qd5+ {[%emt 0:00:05]} Kh8 {[%emt 0:00:03]} 26. Rh5 {[%emt 0:01:15]} Qf3 {[%emt 0:00:47]} 27. Qxf3 {[%emt 0:00:30]} Rxf3 {[%emt 0:00:30]} 28. Re5 {[%emt 0:00:30]} Rff8 {[%emt 0:00:30]} 29. Rh5 {[%emt 0:01:54]} Rf3 {[%emt 0:00:05]} 30. Re5 {[%emt 0:00:29]} Bh4 {[%emt 0:00:35]} 31. Kxg2 {[%emt 0:00:42]} Rxf2+ {[%emt 0:00:14]} 32. Kh3 {[%emt 0:00:20]} Bf6 {[%emt 0:00:05]} 33. Ra5 {[%emt 0:00:07]} h6 {[%emt 0:00:04]} 0-1